[Event "*** Titled Tuesday Blitz"]
[Site "Chess.com"]
[Date "2020.05.19"]
[Round "3"]
[White "Klaus1995"]
[Black "FelixBlohberger"]
[Result "0-1"]
[WhiteElo "1804"]
[BlackElo "2599"]
[TimeControl "180+1"]
[EndTime "12:27:04 PDT"]
[Termination "FelixBlohberger won by resignation"]

1. e4 {[%clk 0:03:00.9]} 1... c5 {[%clk 0:02:54.3]} 2. Nf3 {[%clk 0:02:57.2]}
2... Nf6 {[%clk 0:02:51.3]} 3. Nc3 {[%clk 0:02:55.8]} 3... d6 {[%clk 0:02:47.1]}
4. d4 {[%clk 0:02:54.9]} 4... cxd4 {[%clk 0:02:46.9]} 5. Nxd4 {[%clk 0:02:55.8]}
5... a6 {[%clk 0:02:47.3]} 6. Be3 {[%clk 0:02:54.4]} 6... e6 {[%clk 0:02:46.9]}
7. f3 {[%clk 0:02:54]} 7... h5 {[%clk 0:02:46.9]} 8. Qd2 {[%clk 0:02:54.2]} 8...
b5 {[%clk 0:02:40.7]} 9. a3 {[%clk 0:02:51]} 9... Bb7 {[%clk 0:02:40.6]} 10. Be2
{[%clk 0:02:50.2]} 10... Nbd7 {[%clk 0:02:39.9]} 11. O-O {[%clk 0:02:49.8]}
11... Be7 {[%clk 0:02:36.1]} 12. Bd3 {[%clk 0:02:32.9]} 12... Rc8 {[%clk
0:02:26.4]} 13. f4 {[%clk 0:02:26.7]} 13... Ng4 {[%clk 0:02:23.6]} 14. Kh1
{[%clk 0:02:15.1]} 14... Nxe3 {[%clk 0:02:22.8]} 15. Qxe3 {[%clk 0:02:16]} 15...
Qb6 {[%clk 0:02:23.1]} 16. Rfe1 {[%clk 0:02:12.5]} 16... Bf6 {[%clk 0:02:22.4]}
17. e5 {[%clk 0:01:20.1]} 17... dxe5 {[%clk 0:02:20]} 18. fxe5 {[%clk
0:01:13.6]} 18... Nxe5 {[%clk 0:02:07.7]} 19. Qf4 {[%clk 0:00:50.7]} 19... Nxd3
{[%clk 0:02:02.3]} 20. cxd3 {[%clk 0:00:46.5]} 20... Qxd4 {[%clk 0:02:00.7]} 21.
Re4 {[%clk 0:00:41.8]} 21... Bxe4 {[%clk 0:01:57.8]} 22. Nxe4 {[%clk 0:00:42.1]}
22... O-O {[%clk 0:01:50.6]} 23. Rf1 {[%clk 0:00:38.1]} 23... Qxb2 {[%clk
0:01:42.5]} 24. Qf3 {[%clk 0:00:34.3]} 24... Rc1 {[%clk 0:01:37]} 25. Nxf6+
{[%clk 0:00:27.2]} 25... gxf6 {[%clk 0:01:37.9]} 26. h3 {[%clk 0:00:16.7]} 26...
Rxf1+ {[%clk 0:01:36.8]} 27. Qxf1 {[%clk 0:00:17.6]} 27... Rc8 {[%clk
0:01:36.9]} 28. Qf3 {[%clk 0:00:17.1]} 28... Rc1+ {[%clk 0:01:36.7]} 29. Kh2
{[%clk 0:00:16.1]} 29... Qe5+ {[%clk 0:01:37.3]} 30. g3 {[%clk 0:00:15.4]} 30...
Rc2+ {[%clk 0:01:36.6]} 31. Kg1 {[%clk 0:00:15.4]} 31... Qe1+ {[%clk 0:01:36.9]}
0-1

[Event "*** Titled Tuesday Blitz"]
[Site "Chess.com"]
[Date "2020.05.19"]
[Round "3"]
[White "ValeriyGrinev"]
[Black "SharapovEvgeny"]
[Result "1/2-1/2"]
[WhiteElo "2553"]
[BlackElo "2373"]
[TimeControl "180+1"]
[EndTime "12:27:13 PDT"]
[Termination "Game drawn by repetition"]

1. d4 {[%clk 0:03:00.5]} 1... d5 {[%clk 0:02:59.5]} 2. c4 {[%clk 0:03:00.4]}
2... c6 {[%clk 0:02:59.6]} 3. Nf3 {[%clk 0:03:00]} 3... Nf6 {[%clk 0:02:59.5]}
4. Nc3 {[%clk 0:03:00.6]} 4... g6 {[%clk 0:02:59.2]} 5. cxd5 {[%clk 0:03:00.3]}
5... cxd5 {[%clk 0:02:58.5]} 6. Bf4 {[%clk 0:03:00.4]} 6... Bg7 {[%clk
0:02:58.6]} 7. e3 {[%clk 0:03:00.9]} 7... O-O {[%clk 0:02:58.5]} 8. Bd3 {[%clk
0:03:01.5]} 8... Bf5 {[%clk 0:02:57.5]} 9. Bxf5 {[%clk 0:03:00.9]} 9... gxf5
{[%clk 0:02:57.1]} 10. Qd3 {[%clk 0:03:01.1]} 10... Ne4 {[%clk 0:02:56]} 11. h3
{[%clk 0:02:58.8]} 11... Nc6 {[%clk 0:02:55.2]} 12. g4 {[%clk 0:02:58.4]} 12...
e6 {[%clk 0:02:48.7]} 13. gxf5 {[%clk 0:02:57.8]} 13... exf5 {[%clk 0:02:48.3]}
14. Rg1 {[%clk 0:02:56.2]} 14... Kh8 {[%clk 0:02:47.8]} 15. Ne5 {[%clk 0:02:38]}
15... f6 {[%clk 0:02:36.1]} 16. Nxc6 {[%clk 0:02:35.9]} 16... bxc6 {[%clk
0:02:35.6]} 17. f3 {[%clk 0:02:33.6]} 17... Nxc3 {[%clk 0:02:32.1]} 18. Qxc3
{[%clk 0:02:34.5]} 18... Qb6 {[%clk 0:02:26.6]} 19. Bd6 {[%clk 0:02:31.2]} 19...
Rg8 {[%clk 0:02:25.7]} 20. Bc5 {[%clk 0:02:24.2]} 20... Qa6 {[%clk 0:02:23]} 21.
Qa3 {[%clk 0:02:01.6]} 21... Qxa3 {[%clk 0:02:18.2]} 22. Bxa3 {[%clk 0:02:02.5]}
22... Bh6 {[%clk 0:02:17.7]} 23. Kf2 {[%clk 0:02:01.8]} 23... Rxg1 {[%clk
0:02:15.4]} 24. Rxg1 {[%clk 0:02:01.1]} 24... Re8 {[%clk 0:02:03.4]} 25. f4
{[%clk 0:02:00.2]} 25... Bf8 {[%clk 0:01:46.8]} 26. Bxf8 {[%clk 0:01:58.9]}
26... Rxf8 {[%clk 0:01:46.8]} 27. Rc1 {[%clk 0:01:59.8]} 27... Rc8 {[%clk
0:01:46.8]} 28. Rc5 {[%clk 0:01:59.5]} 28... Kg7 {[%clk 0:01:46]} 29. b4 {[%clk
0:01:56.5]} 29... Rb8 {[%clk 0:01:43.5]} 30. Rxc6 {[%clk 0:01:52.9]} 30... Rxb4
{[%clk 0:01:42.6]} 31. Rc7+ {[%clk 0:01:53.4]} 31... Kg6 {[%clk 0:01:42.4]} 32.
Rxa7 {[%clk 0:01:53.6]} 32... Rb2+ {[%clk 0:01:42]} 33. Kf3 {[%clk 0:01:53.3]}
33... Rh2 {[%clk 0:01:41.4]} 34. a4 {[%clk 0:01:44.9]} 34... Rxh3+ {[%clk
0:01:40.6]} 35. Kf2 {[%clk 0:01:45.3]} 35... Rh2+ {[%clk 0:01:40.4]} 36. Kg3
{[%clk 0:01:45.6]} 36... Re2 {[%clk 0:01:38.4]} 37. Kf3 {[%clk 0:01:45.8]} 37...
Ra2 {[%clk 0:01:38]} 38. a5 {[%clk 0:01:46.3]} 38... h5 {[%clk 0:01:37.1]} 39.
a6 {[%clk 0:01:46.8]} 39... h4 {[%clk 0:01:36.9]} 40. Ra8 {[%clk 0:01:43.1]}
40... Kg7 {[%clk 0:01:36.6]} 41. Ra7+ {[%clk 0:00:55]} 41... Kg6 {[%clk
0:01:36]} 42. Ra8 {[%clk 0:00:35.7]} 42... Kg7 {[%clk 0:01:32.3]} 43. Ra7+
{[%clk 0:00:35.4]} 43... Kg6 {[%clk 0:01:31.8]} 1/2-1/2

[Event "*** Titled Tuesday Blitz"]
[Site "Chess.com"]
[Date "2020.05.19"]
[Round "3"]
[White "chito89"]
[Black "kingofthenil"]
[Result "1-0"]
[WhiteElo "2734"]
[BlackElo "2494"]
[TimeControl "180+1"]
[EndTime "12:27:14 PDT"]
[Termination "chito89 won on time"]

1. e4 {[%clk 0:02:16.9]} 1... e6 {[%clk 0:02:49.4]} 2. d4 {[%clk 0:02:15]} 2...
d5 {[%clk 0:02:50.3]} 3. Nc3 {[%clk 0:02:15.4]} 3... Nf6 {[%clk 0:02:49.8]} 4.
e5 {[%clk 0:02:15.5]} 4... Nfd7 {[%clk 0:02:49.6]} 5. Nce2 {[%clk 0:02:16.1]}
5... c5 {[%clk 0:02:50.5]} 6. c3 {[%clk 0:02:16.3]} 6... Nc6 {[%clk 0:02:51.4]}
7. Nf3 {[%clk 0:02:16.3]} 7... Be7 {[%clk 0:02:50.7]} 8. a3 {[%clk 0:02:15.1]}
8... b5 {[%clk 0:01:30.8]} 9. Nf4 {[%clk 0:02:05.6]} 9... b4 {[%clk 0:01:14.6]}
10. axb4 {[%clk 0:01:53.8]} 10... cxb4 {[%clk 0:01:15.5]} 11. Bd3 {[%clk
0:01:34]} 11... a5 {[%clk 0:00:56]} 12. Nh5 {[%clk 0:01:32.3]} 12... O-O {[%clk
0:00:46.8]} 13. h4 {[%clk 0:01:25]} 13... f5 {[%clk 0:00:43.2]} 14. Nf4 {[%clk
0:01:21.3]} 14... Nb6 {[%clk 0:00:41.2]} 15. g4 {[%clk 0:01:19.8]} 15... fxg4
{[%clk 0:00:16.7]} 16. Ng5 {[%clk 0:01:18.9]} 16... Rxf4 {[%clk 0:00:02.3]} 17.
Bxh7+ {[%clk 0:01:12.2]} 17... Kf8 {[%clk 0:00:01.8]} 18. Bxf4 {[%clk
0:01:12.7]} 1-0

[Event "*** Titled Tuesday Blitz"]
[Site "Chess.com"]
[Date "2020.05.19"]
[Round "3"]
[White "Chessmatus"]
[Black "IMinTheWings"]
[Result "1-0"]
[WhiteElo "2497"]
[BlackElo "2222"]
[TimeControl "180+1"]
[EndTime "12:27:15 PDT"]
[Termination "Chessmatus won by resignation"]

1. e4 {[%clk 0:03:00.9]} 1... c5 {[%clk 0:02:57.8]} 2. Nf3 {[%clk 0:03:01.1]}
2... d6 {[%clk 0:02:58.1]} 3. d4 {[%clk 0:03:01.4]} 3... cxd4 {[%clk 0:02:58.8]}
4. Nxd4 {[%clk 0:03:02.3]} 4... Nf6 {[%clk 0:02:59.5]} 5. Nc3 {[%clk 0:03:02.6]}
5... a6 {[%clk 0:03:00]} 6. Be3 {[%clk 0:03:02.8]} 6... Ng4 {[%clk 0:03:00]} 7.
Bc1 {[%clk 0:03:01.3]} 7... Nf6 {[%clk 0:03:00]} 8. f3 {[%clk 0:03:01.9]} 8...
e5 {[%clk 0:02:59.7]} 9. Nb3 {[%clk 0:03:01.4]} 9... Be6 {[%clk 0:02:59.7]} 10.
Be3 {[%clk 0:03:01.4]} 10... Be7 {[%clk 0:02:59.6]} 11. Qd2 {[%clk 0:03:01.5]}
11... Nbd7 {[%clk 0:02:59.9]} 12. O-O-O {[%clk 0:03:00.5]} 12... b5 {[%clk
0:02:56.8]} 13. g4 {[%clk 0:03:00.5]} 13... Rc8 {[%clk 0:02:50.2]} 14. Kb1
{[%clk 0:02:53.9]} 14... O-O {[%clk 0:02:50.2]} 15. g5 {[%clk 0:02:50.9]} 15...
Nh5 {[%clk 0:02:43.5]} 16. Nd5 {[%clk 0:02:50.4]} 16... Bxd5 {[%clk 0:02:40.1]}
17. exd5 {[%clk 0:02:51.3]} 17... f5 {[%clk 0:02:30]} 18. gxf6 {[%clk
0:02:51.4]} 18... Nhxf6 {[%clk 0:02:21.9]} 19. Na5 {[%clk 0:02:46.5]} 19... e4
{[%clk 0:02:05.3]} 20. Nc6 {[%clk 0:02:43.9]} 20... Qe8 {[%clk 0:02:05.4]} 21.
fxe4 {[%clk 0:02:14]} 21... Nxe4 {[%clk 0:02:04.7]} 22. Qg2 {[%clk 0:02:12.6]}
22... Ndf6 {[%clk 0:02:01.1]} 23. Bd3 {[%clk 0:02:05]} 23... Nc5 {[%clk
0:01:56.3]} 24. Bf5 {[%clk 0:02:04.3]} 24... Rc7 {[%clk 0:01:44.7]} 25. Rhe1
{[%clk 0:02:04.3]} 25... g6 {[%clk 0:01:42.4]} 26. Bg5 {[%clk 0:01:58.7]} 26...
Kh8 {[%clk 0:01:40.6]} 27. Be6 {[%clk 0:01:34.9]} 27... Nxe6 {[%clk 0:01:32]}
28. Rxe6 {[%clk 0:01:35.8]} 28... Ng8 {[%clk 0:00:29.1]} 29. Rde1 {[%clk
0:01:33.5]} 29... Rf7 {[%clk 0:00:29.5]} 30. Qe4 {[%clk 0:01:25.8]} 30... Qf8
{[%clk 0:00:26]} 31. Nxe7 {[%clk 0:01:20.3]} 31... Nxe7 {[%clk 0:00:24.9]} 32.
Bxe7 {[%clk 0:01:20.5]} 32... Rfxe7 {[%clk 0:00:22.4]} 33. Rxe7 {[%clk
0:01:21.4]} 33... Rxe7 {[%clk 0:00:23]} 34. Qxe7 {[%clk 0:01:21.5]} 34... Qxe7
{[%clk 0:00:23.9]} 35. Rxe7 {[%clk 0:01:22]} 1-0

[Event "*** Titled Tuesday Blitz"]
[Site "Chess.com"]
[Date "2020.05.19"]
[Round "3"]
[White "124chess"]
[Black "MergenKakabaev"]
[Result "1-0"]
[WhiteElo "2762"]
[BlackElo "2447"]
[TimeControl "180+1"]
[EndTime "12:27:18 PDT"]
[Termination "124chess won by resignation"]

1. d4 {[%clk 0:03:00.9]} 1... d5 {[%clk 0:02:57.6]} 2. c4 {[%clk 0:03:00.7]}
2... c6 {[%clk 0:02:57.7]} 3. Nf3 {[%clk 0:03:00.5]} 3... Nf6 {[%clk 0:02:56.7]}
4. e3 {[%clk 0:03:00.8]} 4... e6 {[%clk 0:02:56.8]} 5. b3 {[%clk 0:03:00.2]}
5... Nbd7 {[%clk 0:02:56.7]} 6. Bb2 {[%clk 0:02:59.5]} 6... Be7 {[%clk
0:02:57.2]} 7. Bd3 {[%clk 0:02:59.1]} 7... b6 {[%clk 0:02:57.4]} 8. O-O {[%clk
0:02:58.7]} 8... Bb7 {[%clk 0:02:57.7]} 9. Nc3 {[%clk 0:02:55.1]} 9... c5 {[%clk
0:02:55.3]} 10. cxd5 {[%clk 0:02:54.6]} 10... Nxd5 {[%clk 0:02:51.2]} 11. Nxd5
{[%clk 0:02:51.7]} 11... Bxd5 {[%clk 0:02:52.1]} 12. e4 {[%clk 0:02:40.7]} 12...
Bb7 {[%clk 0:02:46.4]} 13. dxc5 {[%clk 0:02:38]} 13... Nxc5 {[%clk 0:02:42.4]}
14. Bxg7 {[%clk 0:02:25.1]} 14... Rg8 {[%clk 0:02:24.7]} 15. Bb5+ {[%clk
0:02:23.9]} 15... Nd7 {[%clk 0:02:24.5]} 16. Ne5 {[%clk 0:01:14.9]} 16... Rxg7
{[%clk 0:02:17.7]} 17. Bxd7+ {[%clk 0:01:15]} 17... Kf8 {[%clk 0:02:17.4]} 18.
Bc6 {[%clk 0:01:15.6]} 18... Qc7 {[%clk 0:02:02.1]} 19. Bxb7 {[%clk 0:01:12.8]}
19... Qxb7 {[%clk 0:02:00.1]} 20. Qf3 {[%clk 0:01:12.4]} 20... Kg8 {[%clk
0:01:47.8]} 21. Rfd1 {[%clk 0:01:08.9]} 21... Qc7 {[%clk 0:01:37.8]} 22. Ng4
{[%clk 0:01:02.7]} 22... Rc8 {[%clk 0:01:15]} 23. g3 {[%clk 0:00:54.8]} 23...
Rg5 {[%clk 0:01:04.1]} 24. Nh6+ {[%clk 0:00:41.6]} 24... Kg7 {[%clk 0:01:01.9]}
25. Nxf7 {[%clk 0:00:41.7]} 1-0

[Event "*** Titled Tuesday Blitz"]
[Site "Chess.com"]
[Date "2020.05.19"]
[Round "3"]
[White "IwkooO"]
[Black "S_Kalvaitis"]
[Result "1-0"]
[WhiteElo "2549"]
[BlackElo "2347"]
[TimeControl "180+1"]
[EndTime "12:27:24 PDT"]
[Termination "IwkooO won by resignation"]

1. e4 {[%clk 0:03:00.9]} 1... e5 {[%clk 0:03:00.2]} 2. Nf3 {[%clk 0:03:00.9]}
2... Nc6 {[%clk 0:03:00.8]} 3. Bb5 {[%clk 0:03:01.4]} 3... a6 {[%clk 0:03:00.7]}
4. Ba4 {[%clk 0:03:01.3]} 4... Nf6 {[%clk 0:03:00.7]} 5. O-O {[%clk 0:03:01]}
5... Be7 {[%clk 0:03:01.2]} 6. Re1 {[%clk 0:03:00.7]} 6... b5 {[%clk 0:03:01]}
7. Bb3 {[%clk 0:03:00.9]} 7... O-O {[%clk 0:03:01.2]} 8. h3 {[%clk 0:02:51.6]}
8... Bb7 {[%clk 0:03:00.6]} 9. d3 {[%clk 0:02:49.1]} 9... d6 {[%clk 0:02:57.5]}
10. c3 {[%clk 0:02:42.7]} 10... Na5 {[%clk 0:02:57.4]} 11. Bc2 {[%clk
0:02:42.9]} 11... c5 {[%clk 0:02:57.9]} 12. Be3 {[%clk 0:02:41.3]} 12... Re8
{[%clk 0:02:50.3]} 13. Nbd2 {[%clk 0:02:41.4]} 13... Nc6 {[%clk 0:02:22.6]} 14.
a3 {[%clk 0:02:31.2]} 14... d5 {[%clk 0:02:22.2]} 15. d4 {[%clk 0:02:25.6]}
15... cxd4 {[%clk 0:02:12.3]} 16. cxd4 {[%clk 0:02:25.2]} 16... exd4 {[%clk
0:02:12]} 17. Nxd4 {[%clk 0:02:20.9]} 17... Nxd4 {[%clk 0:01:42.4]} 18. Bxd4
{[%clk 0:02:21.8]} 18... dxe4 {[%clk 0:01:41.4]} 19. Nxe4 {[%clk 0:02:21.2]}
19... Nxe4 {[%clk 0:01:12.1]} 20. Bxe4 {[%clk 0:02:20.4]} 20... Bxe4 {[%clk
0:01:12.7]} 21. Rxe4 {[%clk 0:02:21.3]} 21... Bf8 {[%clk 0:01:12.4]} 22. Qf3
{[%clk 0:02:08.1]} 22... Rxe4 {[%clk 0:00:53.7]} 23. Qxe4 {[%clk 0:02:07]} 23...
Rc8 {[%clk 0:00:54.2]} 24. Bc3 {[%clk 0:01:49.1]} 24... a5 {[%clk 0:00:48.5]}
25. Qg4 {[%clk 0:01:37.7]} 25... Rc4 {[%clk 0:00:42.9]} 26. Rd1 {[%clk
0:01:34.6]} 26... Qc7 {[%clk 0:00:28.5]} 27. Qd7 {[%clk 0:01:25.1]} 27... b4
{[%clk 0:00:27.3]} 28. axb4 {[%clk 0:01:21.6]} 28... axb4 {[%clk 0:00:28.2]} 29.
Qxc7 {[%clk 0:01:21.7]} 29... Rxc7 {[%clk 0:00:28.1]} 30. Be5 {[%clk 0:01:19.9]}
30... Rc2 {[%clk 0:00:26.6]} 31. Rd8 {[%clk 0:01:18.6]} 31... Rc1+ {[%clk
0:00:15.1]} 32. Kh2 {[%clk 0:01:18.2]} 32... Rd1 {[%clk 0:00:15.7]} 33. Rxd1
{[%clk 0:01:17.2]} 1-0

[Event "*** Titled Tuesday Blitz"]
[Site "Chess.com"]
[Date "2020.05.19"]
[Round "3"]
[White "Spartakus1975"]
[Black "Matveev_Vladimir"]
[Result "1-0"]
[WhiteElo "2680"]
[BlackElo "2494"]
[TimeControl "180+1"]
[EndTime "12:27:26 PDT"]
[Termination "Spartakus1975 won by resignation"]

1. e4 {[%clk 0:03:00.9]} 1... d6 {[%clk 0:03:00.3]} 2. d4 {[%clk 0:03:00.3]}
2... g6 {[%clk 0:03:01.2]} 3. Nc3 {[%clk 0:02:58.9]} 3... Bg7 {[%clk 0:03:01.5]}
4. Be3 {[%clk 0:02:57]} 4... a6 {[%clk 0:03:02]} 5. a4 {[%clk 0:02:56.3]} 5...
Nc6 {[%clk 0:03:01]} 6. Nge2 {[%clk 0:02:50.9]} 6... Nf6 {[%clk 0:02:59.8]} 7.
h3 {[%clk 0:02:45.6]} 7... O-O {[%clk 0:02:58.1]} 8. g4 {[%clk 0:02:45.2]} 8...
e5 {[%clk 0:02:50.9]} 9. d5 {[%clk 0:02:45.2]} 9... Ne7 {[%clk 0:02:45.8]} 10.
Ng3 {[%clk 0:02:44.6]} 10... c6 {[%clk 0:02:32.2]} 11. g5 {[%clk 0:02:44]} 11...
Ne8 {[%clk 0:02:28.3]} 12. h4 {[%clk 0:02:44.1]} 12... f5 {[%clk 0:02:17.6]} 13.
gxf6 {[%clk 0:02:41.3]} 13... Nxf6 {[%clk 0:02:17.9]} 14. h5 {[%clk 0:02:38.6]}
14... Ng4 {[%clk 0:02:14.5]} 15. hxg6 {[%clk 0:02:32.2]} 15... hxg6 {[%clk
0:02:15.4]} 16. Qd2 {[%clk 0:02:22.8]} 16... Nxe3 {[%clk 0:02:13.9]} 17. Qxe3
{[%clk 0:02:22.8]} 17... cxd5 {[%clk 0:02:14.5]} 18. Nxd5 {[%clk 0:02:16]} 18...
Nxd5 {[%clk 0:02:14.5]} 19. exd5 {[%clk 0:02:16.9]} 19... Rf4 {[%clk 0:02:02]}
20. Bd3 {[%clk 0:02:12]} 20... Qa5+ {[%clk 0:01:57.6]} 21. c3 {[%clk 0:02:09.7]}
21... Qxd5 {[%clk 0:01:55.3]} 22. O-O-O {[%clk 0:01:46.4]} 22... Bg4 {[%clk
0:01:44.7]} 23. Be4 {[%clk 0:01:27.9]} 23... Qa5 {[%clk 0:01:30.3]} 24. Rxd6
{[%clk 0:01:22.3]} 24... Qxa4 {[%clk 0:01:11.7]} 25. Bd5+ {[%clk 0:01:19.5]}
25... Kf8 {[%clk 0:01:10.9]} 26. Qc5 {[%clk 0:01:17.7]} 26... Ke8 {[%clk
0:00:44.1]} 27. Bxb7 {[%clk 0:01:05]} 27... Qa1+ {[%clk 0:00:29]} 28. Kc2 {[%clk
0:01:04]} 28... Qa4+ {[%clk 0:00:28]} 29. Kb1 {[%clk 0:01:03.9]} 1-0

[Event "*** Titled Tuesday Blitz"]
[Site "Chess.com"]
[Date "2020.05.19"]
[Round "3"]
[White "lamomiablanca"]
[Black "Mugzyyy"]
[Result "0-1"]
[WhiteElo "2169"]
[BlackElo "2480"]
[TimeControl "180+1"]
[EndTime "12:27:28 PDT"]
[Termination "Mugzyyy won on time"]

1. e4 {[%clk 0:03:00.9]} 1... c5 {[%clk 0:02:27.5]} 2. d3 {[%clk 0:02:59.2]}
2... d6 {[%clk 0:02:27.4]} 3. g3 {[%clk 0:02:58.4]} 3... g6 {[%clk 0:02:27.8]}
4. Bg2 {[%clk 0:02:58.5]} 4... Bg7 {[%clk 0:02:28.3]} 5. f4 {[%clk 0:02:58.6]}
5... Nc6 {[%clk 0:02:28.7]} 6. Nf3 {[%clk 0:02:58.9]} 6... Bg4 {[%clk
0:02:28.8]} 7. O-O {[%clk 0:02:56.7]} 7... e6 {[%clk 0:02:26.3]} 8. h3 {[%clk
0:02:55.7]} 8... Bxf3 {[%clk 0:02:26.3]} 9. Bxf3 {[%clk 0:02:55.6]} 9... Nge7
{[%clk 0:02:25.2]} 10. Bg2 {[%clk 0:02:55.6]} 10... O-O {[%clk 0:02:25.3]} 11.
Nc3 {[%clk 0:02:53.7]} 11... Rb8 {[%clk 0:02:25]} 12. Ne2 {[%clk 0:02:53.8]}
12... b5 {[%clk 0:02:24.9]} 13. a3 {[%clk 0:02:43.5]} 13... a5 {[%clk
0:02:24.9]} 14. Rb1 {[%clk 0:02:39.4]} 14... b4 {[%clk 0:02:24]} 15. axb4 {[%clk
0:02:39.3]} 15... axb4 {[%clk 0:02:24.9]} 16. Be3 {[%clk 0:02:39.3]} 16... Ra8
{[%clk 0:02:24.3]} 17. d4 {[%clk 0:02:36.9]} 17... cxd4 {[%clk 0:02:23.8]} 18.
Nxd4 {[%clk 0:02:36.7]} 18... Ra2 {[%clk 0:02:16.2]} 19. Nxc6 {[%clk 0:02:27.1]}
19... Nxc6 {[%clk 0:02:17.1]} 20. e5 {[%clk 0:02:12.6]} 20... d5 {[%clk
0:02:16.1]} 21. Qd2 {[%clk 0:01:56.2]} 21... Qa5 {[%clk 0:02:11]} 22. h4 {[%clk
0:01:53]} 22... b3 {[%clk 0:02:08.1]} 23. c3 {[%clk 0:01:45.1]} 23... Rd8 {[%clk
0:01:58.3]} 24. Bf2 {[%clk 0:01:43.6]} 24... h5 {[%clk 0:01:51.4]} 25. Bf3
{[%clk 0:01:42.2]} 25... Bf8 {[%clk 0:01:50.6]} 26. g4 {[%clk 0:01:35.6]} 26...
hxg4 {[%clk 0:01:51.5]} 27. Bxg4 {[%clk 0:01:35.3]} 27... d4 {[%clk 0:01:51.4]}
28. Bf3 {[%clk 0:00:54.9]} 28... dxc3 {[%clk 0:01:50.1]} 29. Qxc3 {[%clk
0:00:54.3]} 29... Qxc3 {[%clk 0:01:49.8]} 30. bxc3 {[%clk 0:00:54.5]} 30... Na5
{[%clk 0:01:48]} 31. Bb6 {[%clk 0:00:53.9]} 31... Rdd2 {[%clk 0:01:47.9]} 32.
Rfd1 {[%clk 0:00:29.1]} 32... Nc4 {[%clk 0:01:39.9]} 33. Bd4 {[%clk 0:00:20.9]}
33... b2 {[%clk 0:01:38.3]} 34. Be4 {[%clk 0:00:05]} 34... Rxd1+ {[%clk
0:01:31.3]} 35. Rxd1 {[%clk 0:00:04.2]} 35... Ra1 {[%clk 0:01:32.2]} 0-1

[Event "*** Titled Tuesday Blitz"]
[Site "Chess.com"]
[Date "2020.05.19"]
[Round "3"]
[White "DinaBelenkaya"]
[Black "ClassyEl"]
[Result "0-1"]
[WhiteElo "2206"]
[BlackElo "2492"]
[TimeControl "180+1"]
[EndTime "12:27:30 PDT"]
[Termination "ClassyEl won by resignation"]

1. e4 {[%clk 0:03:00.9]} 1... d6 {[%clk 0:02:59.8]} 2. d4 {[%clk 0:02:59.4]}
2... Nf6 {[%clk 0:03:00.4]} 3. Nc3 {[%clk 0:02:46.2]} 3... c6 {[%clk 0:03:00.6]}
4. Nf3 {[%clk 0:02:30.4]} 4... Bg4 {[%clk 0:02:59.3]} 5. Be2 {[%clk 0:02:29.6]}
5... e6 {[%clk 0:02:59.4]} 6. O-O {[%clk 0:02:28.6]} 6... d5 {[%clk 0:02:59.8]}
7. e5 {[%clk 0:02:27.1]} 7... Nfd7 {[%clk 0:02:59.5]} 8. a4 {[%clk 0:02:21]}
8... a6 {[%clk 0:02:57.8]} 9. a5 {[%clk 0:02:21.1]} 9... c5 {[%clk 0:02:58.2]}
10. Be3 {[%clk 0:02:16.4]} 10... Nc6 {[%clk 0:02:58]} 11. dxc5 {[%clk
0:02:06.9]} 11... Bxc5 {[%clk 0:02:57.6]} 12. Bxc5 {[%clk 0:02:01.2]} 12... Nxc5
{[%clk 0:02:57.4]} 13. Re1 {[%clk 0:01:54.8]} 13... Qc7 {[%clk 0:02:55.3]} 14.
h3 {[%clk 0:01:23.7]} 14... Bxf3 {[%clk 0:02:55.1]} 15. Bxf3 {[%clk 0:01:24.6]}
15... O-O {[%clk 0:02:55.4]} 16. Qe2 {[%clk 0:01:22.1]} 16... Rfd8 {[%clk
0:02:46.9]} 17. Bh5 {[%clk 0:01:15.4]} 17... g6 {[%clk 0:02:45.7]} 18. Bf3
{[%clk 0:01:08.7]} 18... Rac8 {[%clk 0:02:41.5]} 19. h4 {[%clk 0:01:08.5]} 19...
Qe7 {[%clk 0:02:27.5]} 20. h5 {[%clk 0:01:07.8]} 20... Qg5 {[%clk 0:02:27.5]}
21. Na4 {[%clk 0:00:53.8]} 21... Nd7 {[%clk 0:02:15.3]} 22. Nb6 {[%clk
0:00:52.2]} 22... Nxb6 {[%clk 0:02:15.3]} 23. axb6 {[%clk 0:00:53.1]} 23... Nd4
{[%clk 0:02:15.6]} 24. Qd3 {[%clk 0:00:43]} 24... Nxc2 {[%clk 0:02:10.2]} 25.
Rad1 {[%clk 0:00:31.2]} 25... Nxe1 {[%clk 0:02:08.6]} 26. Rxe1 {[%clk
0:00:32.1]} 26... Rc6 {[%clk 0:02:08.7]} 27. Qd4 {[%clk 0:00:31]} 27... Rdc8
{[%clk 0:02:05.3]} 28. Bd1 {[%clk 0:00:31.1]} 28... Rc4 {[%clk 0:02:03.6]} 29.
Qd3 {[%clk 0:00:29.5]} 29... Rc1 {[%clk 0:02:00]} 30. g3 {[%clk 0:00:29.3]}
30... Ra1 {[%clk 0:01:49.2]} 31. f4 {[%clk 0:00:24.6]} 31... Qf5 {[%clk
0:01:45]} 32. Qd2 {[%clk 0:00:22.6]} 32... gxh5 {[%clk 0:01:40.3]} 33. Kg2
{[%clk 0:00:19.7]} 33... Rcc1 {[%clk 0:01:36.8]} 34. Rh1 {[%clk 0:00:14]} 34...
Qe4+ {[%clk 0:01:36.9]} 35. Bf3 {[%clk 0:00:11.6]} 35... Rc2 {[%clk 0:01:35.6]}
36. Bxe4 {[%clk 0:00:05.2]} 36... Rxd2+ {[%clk 0:01:35.6]} 37. Kf3 {[%clk
0:00:04.9]} 37... Rxh1 {[%clk 0:01:35.1]} 0-1

[Event "*** Titled Tuesday Blitz"]
[Site "Chess.com"]
[Date "2020.05.19"]
[Round "3"]
[White "Grootneus"]
[Black "tarantul1"]
[Result "1-0"]
[WhiteElo "2222"]
[BlackElo "2475"]
[TimeControl "180+1"]
[EndTime "12:27:30 PDT"]
[Termination "Grootneus won by resignation"]

1. e4 {[%clk 0:03:00.9]} 1... c5 {[%clk 0:02:57.7]} 2. Nf3 {[%clk 0:03:00.1]}
2... e6 {[%clk 0:02:58]} 3. b3 {[%clk 0:02:57.1]} 3... b6 {[%clk 0:02:57.2]} 4.
Bb2 {[%clk 0:02:46.6]} 4... Bb7 {[%clk 0:02:56.9]} 5. Nc3 {[%clk 0:02:47.2]}
5... d6 {[%clk 0:02:49.2]} 6. d4 {[%clk 0:02:18.4]} 6... cxd4 {[%clk 0:02:50.1]}
7. Nxd4 {[%clk 0:02:19.2]} 7... Nf6 {[%clk 0:02:46.9]} 8. Bb5+ {[%clk 0:02:05]}
8... Nbd7 {[%clk 0:02:46]} 9. f3 {[%clk 0:02:01.4]} 9... Qc7 {[%clk 0:02:45.8]}
10. O-O {[%clk 0:01:55.2]} 10... a6 {[%clk 0:02:43.4]} 11. Bxd7+ {[%clk
0:01:52.7]} 11... Nxd7 {[%clk 0:02:42.5]} 12. Nce2 {[%clk 0:01:50.2]} 12... Be7
{[%clk 0:02:41.1]} 13. c4 {[%clk 0:01:48.4]} 13... O-O {[%clk 0:02:40.4]} 14.
Rc1 {[%clk 0:01:45.8]} 14... Rac8 {[%clk 0:02:39.9]} 15. Nc3 {[%clk 0:01:45.6]}
15... Qb8 {[%clk 0:02:40]} 16. Qe1 {[%clk 0:01:42.3]} 16... Rfd8 {[%clk
0:02:40.4]} 17. Nc2 {[%clk 0:01:40.7]} 17... b5 {[%clk 0:02:31.9]} 18. cxb5
{[%clk 0:01:38]} 18... axb5 {[%clk 0:02:32.8]} 19. Nxb5 {[%clk 0:01:21.7]} 19...
Ba6 {[%clk 0:02:32.8]} 20. Qg3 {[%clk 0:01:04]} 20... Bf6 {[%clk 0:02:15.4]} 21.
Bxf6 {[%clk 0:01:03.5]} 21... Nxf6 {[%clk 0:02:16.3]} 22. a4 {[%clk 0:01:02.1]}
22... Bxb5 {[%clk 0:02:16.5]} 23. axb5 {[%clk 0:01:03]} 23... Qxb5 {[%clk
0:02:17.4]} 24. Nd4 {[%clk 0:01:02.6]} 24... Qb6 {[%clk 0:02:17.7]} 25. Qf2
{[%clk 0:01:02.8]} 25... d5 {[%clk 0:02:02.5]} 26. e5 {[%clk 0:01:00.9]} 26...
Nd7 {[%clk 0:02:01.7]} 27. f4 {[%clk 0:00:59.4]} 27... Nc5 {[%clk 0:02:00.8]}
28. Qe3 {[%clk 0:00:42.6]} 1-0